[Event "*** Titled Tuesday Blitz"]
[Site "Chess.com"]
[Date "2020.04.14"]
[Round "7"]
[White "leopato"]
[Black "stoleriu"]
[Result "0-1"]
[WhiteElo "2119"]
[BlackElo "2477"]
[TimeControl "180+1"]
[EndTime "11:15:37 PDT"]
[Termination "stoleriu won by checkmate"]

1. e4 {[%clk 0:02:50.3]} 1... e6 {[%clk 0:02:59.4]} 2. d4 {[%clk 0:02:49.4]}
2... d5 {[%clk 0:03:00.3]} 3. Nc3 {[%clk 0:02:48.9]} 3... Bb4 {[%clk 0:02:55.1]}
4. Ne2 {[%clk 0:02:47.5]} 4... Nf6 {[%clk 0:02:51.1]} 5. e5 {[%clk 0:02:43.3]}
5... Nfd7 {[%clk 0:02:50.9]} 6. a3 {[%clk 0:02:40.8]} 6... Be7 {[%clk
0:02:50.9]} 7. f4 {[%clk 0:02:36.1]} 7... c5 {[%clk 0:02:50.6]} 8. Be3 {[%clk
0:02:34.2]} 8... Nc6 {[%clk 0:02:50]} 9. Qd2 {[%clk 0:02:32.6]} 9... a6 {[%clk
0:02:41.9]} 10. O-O-O {[%clk 0:02:28]} 10... b5 {[%clk 0:02:41.2]} 11. dxc5
{[%clk 0:02:26]} 11... Bxc5 {[%clk 0:02:11.9]} 12. Bxc5 {[%clk 0:02:22.2]} 12...
Nxc5 {[%clk 0:02:12.8]} 13. Nd4 {[%clk 0:02:13]} 13... Qb6 {[%clk 0:02:06.6]}
14. Nxc6 {[%clk 0:02:02.2]} 14... Qxc6 {[%clk 0:02:07.5]} 15. f5 {[%clk
0:01:57]} 15... Bd7 {[%clk 0:01:53.5]} 16. Kb1 {[%clk 0:01:26.5]} 16... Qb6
{[%clk 0:01:38.5]} 17. h4 {[%clk 0:01:19.1]} 17... a5 {[%clk 0:01:37.2]} 18.
fxe6 {[%clk 0:01:09.3]} 18... fxe6 {[%clk 0:01:34.9]} 19. Na2 {[%clk 0:00:53.1]}
19... Ne4 {[%clk 0:01:29.7]} 20. Qd4 {[%clk 0:00:51.1]} 20... Qxd4 {[%clk
0:01:20.6]} 21. Rxd4 {[%clk 0:00:52]} 21... O-O {[%clk 0:01:19.8]} 22. Bd3
{[%clk 0:00:49.4]} 22... Nf2 {[%clk 0:01:02.8]} 23. Rf1 {[%clk 0:00:43.2]} 23...
Nxd3 {[%clk 0:01:01]} 24. Rxf8+ {[%clk 0:00:41.9]} 24... Rxf8 {[%clk 0:01:01.9]}
25. Rxd3 {[%clk 0:00:35.3]} 25... Rf2 {[%clk 0:00:39.9]} 26. Nc3 {[%clk
0:00:20.5]} 26... Rxg2 {[%clk 0:00:35.5]} 27. b4 {[%clk 0:00:18.7]} 27... axb4
{[%clk 0:00:34]} 28. axb4 {[%clk 0:00:18.7]} 28... Rg4 {[%clk 0:00:34.6]} 29.
Na2 {[%clk 0:00:15.5]} 29... Rxh4 {[%clk 0:00:34.6]} 30. c3 {[%clk 0:00:15.3]}
30... g5 {[%clk 0:00:32.6]} 31. Nc1 {[%clk 0:00:13.7]} 31... Re4 {[%clk
0:00:32.1]} 32. Rg3 {[%clk 0:00:11.5]} 32... h6 {[%clk 0:00:31.9]} 33. Nd3
{[%clk 0:00:11.4]} 33... Kg7 {[%clk 0:00:24.5]} 34. Kc2 {[%clk 0:00:11.5]} 34...
Kg6 {[%clk 0:00:21.8]} 35. Kd2 {[%clk 0:00:11.6]} 35... h5 {[%clk 0:00:21]} 36.
Nc5 {[%clk 0:00:12]} 36... Rxe5 {[%clk 0:00:16.8]} 37. Nxd7 {[%clk 0:00:09.5]}
37... Rf5 {[%clk 0:00:16.5]} 38. Nc5 {[%clk 0:00:08.8]} 38... e5 {[%clk
0:00:14.8]} 39. Rg1 {[%clk 0:00:08.2]} 39... h4 {[%clk 0:00:14.8]} 40. Nd3
{[%clk 0:00:06.1]} 40... e4 {[%clk 0:00:14.6]} 41. Ne1 {[%clk 0:00:04.5]} 41...
Kh5 {[%clk 0:00:12.7]} 42. Ke3 {[%clk 0:00:04.6]} 42... g4 {[%clk 0:00:11]} 43.
Rh1 {[%clk 0:00:04.5]} 43... h3 {[%clk 0:00:10.6]} 44. Kd4 {[%clk 0:00:04.8]}
44... Kh4 {[%clk 0:00:07.6]} 45. Ng2+ {[%clk 0:00:04.5]} 45... Kg3 {[%clk
0:00:08.1]} 46. Ne3 {[%clk 0:00:05.1]} 46... Rf2 {[%clk 0:00:05.6]} 47. Nxd5
{[%clk 0:00:04.3]} 47... Kg2 {[%clk 0:00:05.2]} 48. Rb1 {[%clk 0:00:04.2]} 48...
h2 {[%clk 0:00:04.5]} 49. Ne3+ {[%clk 0:00:03.4]} 49... Kg3 {[%clk 0:00:04.5]}
50. Rh1 {[%clk 0:00:02]} 50... Kf3 {[%clk 0:00:04]} 51. Nd5 {[%clk 0:00:01.6]}
51... Rd2+ {[%clk 0:00:04.2]} 52. Ke5 {[%clk 0:00:02.5]} 52... g3 {[%clk
0:00:04.4]} 53. Nf4 {[%clk 0:00:02.3]} 53... g2 {[%clk 0:00:03.7]} 54. Nxg2
{[%clk 0:00:02.3]} 54... Kxg2 {[%clk 0:00:04.6]} 55. Re1 {[%clk 0:00:02.3]}
55... h1=Q {[%clk 0:00:03.6]} 56. Kxe4 {[%clk 0:00:02.5]} 56... Qxe1+ {[%clk
0:00:02.4]} 57. Kf4 {[%clk 0:00:03.4]} 57... Rf2+ {[%clk 0:00:03]} 58. Kg5
{[%clk 0:00:02.5]} 58... Qe2 {[%clk 0:00:03.9]} 59. Kg6 {[%clk 0:00:03]} 59...
Qf3 {[%clk 0:00:04.7]} 60. Kg5 {[%clk 0:00:03.1]} 60... Qf5+ {[%clk 0:00:05.6]}
61. Kh6 {[%clk 0:00:04]} 61... Rf4 {[%clk 0:00:05.5]} 62. Kg7 {[%clk 0:00:04.3]}
62... Rg4+ {[%clk 0:00:05.7]} 63. Kh8 {[%clk 0:00:05.2]} 63... Qh5# {[%clk
0:00:04.8]} 0-1

[Event "*** Titled Tuesday Blitz"]
[Site "Chess.com"]
[Date "2020.04.14"]
[Round "7"]
[White "ketster"]
[Black "TheFireChess"]
[Result "1-0"]
[WhiteElo "2283"]
[BlackElo "2428"]
[TimeControl "180+1"]
[EndTime "11:15:38 PDT"]
[Termination "ketster won by resignation"]

1. d4 {[%clk 0:02:59.6]} 1... d6 {[%clk 0:02:58.5]} 2. e4 {[%clk 0:02:58.8]}
2... Nd7 {[%clk 0:02:58.1]} 3. Nc3 {[%clk 0:02:53.8]} 3... e5 {[%clk 0:02:58.3]}
4. Bc4 {[%clk 0:02:52.7]} 4... Ngf6 {[%clk 0:02:47.6]} 5. Nf3 {[%clk 0:02:52.1]}
5... h6 {[%clk 0:02:47.5]} 6. O-O {[%clk 0:02:38.4]} 6... Be7 {[%clk 0:02:47.2]}
7. h3 {[%clk 0:02:34.5]} 7... O-O {[%clk 0:02:47.5]} 8. Be3 {[%clk 0:02:34.5]}
8... c6 {[%clk 0:02:47.3]} 9. a4 {[%clk 0:02:34]} 9... Qc7 {[%clk 0:02:47.4]}
10. b4 {[%clk 0:02:22]} 10... Re8 {[%clk 0:02:47.2]} 11. Re1 {[%clk 0:02:17.4]}
11... Nf8 {[%clk 0:02:46.9]} 12. Qb1 {[%clk 0:02:14.3]} 12... Ng6 {[%clk
0:02:37.6]} 13. Qb3 {[%clk 0:02:09.7]} 13... Bf8 {[%clk 0:02:37.9]} 14. dxe5
{[%clk 0:02:05.8]} 14... dxe5 {[%clk 0:02:34.8]} 15. b5 {[%clk 0:02:01.4]} 15...
Be6 {[%clk 0:02:19.6]} 16. Bxe6 {[%clk 0:01:58.7]} 16... Rxe6 {[%clk 0:02:20.5]}
17. b6 {[%clk 0:01:58.8]} 17... axb6 {[%clk 0:02:20]} 18. Bxb6 {[%clk
0:01:58.7]} 18... Qe7 {[%clk 0:02:12.1]} 19. a5 {[%clk 0:01:48]} 19... Nd7
{[%clk 0:02:08.6]} 20. Be3 {[%clk 0:01:45.6]} 20... Nc5 {[%clk 0:02:02.9]} 21.
Qc4 {[%clk 0:01:42.7]} 21... Na6 {[%clk 0:01:47.7]} 22. Na4 {[%clk 0:01:37.3]}
22... Rf6 {[%clk 0:01:33.9]} 23. Nh2 {[%clk 0:01:27.6]} 23... h5 {[%clk
0:01:23.2]} 24. Bg5 {[%clk 0:01:25.1]} 24... Qe6 {[%clk 0:01:20.7]} 25. Qf1
{[%clk 0:01:11.9]} 25... Rf4 {[%clk 0:01:05.9]} 26. Bxf4 {[%clk 0:01:11.5]}
26... Nxf4 {[%clk 0:01:06.8]} 27. Nf3 {[%clk 0:01:09.5]} 27... Nc5 {[%clk
0:00:57.7]} 28. Nxc5 {[%clk 0:01:05]} 28... Bxc5 {[%clk 0:00:58.6]} 29. Red1
{[%clk 0:01:03.2]} 29... Qg6 {[%clk 0:00:47.3]} 30. Nxe5 {[%clk 0:00:46.5]}
30... Qxe4 {[%clk 0:00:39.6]} 31. Nd3 {[%clk 0:00:43.6]} 31... Bd4 {[%clk
0:00:22.8]} 32. Re1 {[%clk 0:00:27.9]} 32... Qf5 {[%clk 0:00:15.2]} 33. Ra4
{[%clk 0:00:26.7]} 33... c5 {[%clk 0:00:10.1]} 34. Nxf4 {[%clk 0:00:26.1]} 34...
Qxf4 {[%clk 0:00:11]} 35. Ra3 {[%clk 0:00:25]} 35... Qc7 {[%clk 0:00:09.3]} 36.
Qd3 {[%clk 0:00:21.6]} 36... g6 {[%clk 0:00:08.1]} 37. Qd2 {[%clk 0:00:20.1]}
37... Ra6 {[%clk 0:00:05.4]} 38. c3 {[%clk 0:00:18.2]} 38... Bf6 {[%clk
0:00:04.8]} 39. Qd5 {[%clk 0:00:15.9]} 39... Rxa5 {[%clk 0:00:03.5]} 40. Rb3
{[%clk 0:00:14.6]} 40... b6 {[%clk 0:00:03.4]} 41. Rd1 {[%clk 0:00:10.5]} 41...
Kg7 {[%clk 0:00:03.3]} 42. g3 {[%clk 0:00:09.3]} 42... Ra7 {[%clk 0:00:02.9]}
43. Qd6 {[%clk 0:00:09.4]} 43... Qxd6 {[%clk 0:00:01.9]} 44. Rxd6 {[%clk
0:00:09.8]} 44... b5 {[%clk 0:00:02.7]} 45. Rd5 {[%clk 0:00:09.5]} 45... b4
{[%clk 0:00:02.3]} 46. cxb4 {[%clk 0:00:09.3]} 46... cxb4 {[%clk 0:00:03.2]} 47.
Rxb4 {[%clk 0:00:09.7]} 47... Ra1+ {[%clk 0:00:04.1]} 48. Kg2 {[%clk 0:00:09.4]}
48... Ra2 {[%clk 0:00:05]} 49. Rf4 {[%clk 0:00:08.5]} 49... Ra7 {[%clk
0:00:04.7]} 50. Rf3 {[%clk 0:00:08.7]} 50... g5 {[%clk 0:00:04.8]} 51. Rdf5
{[%clk 0:00:08.3]} 51... Bd8 {[%clk 0:00:05.3]} 52. g4 {[%clk 0:00:08.4]} 52...
hxg4 {[%clk 0:00:05.1]} 53. hxg4 {[%clk 0:00:09.1]} 53... f6 {[%clk 0:00:05.7]}
54. Re3 {[%clk 0:00:08.4]} 54... Be7 {[%clk 0:00:05.9]} 55. Rd5 {[%clk
0:00:07.3]} 55... Kf7 {[%clk 0:00:06.4]} 56. Red3 {[%clk 0:00:07.2]} 56... Ra6
{[%clk 0:00:06.2]} 57. Kf3 {[%clk 0:00:07.4]} 57... Re6 {[%clk 0:00:06.6]} 58.
Re3 {[%clk 0:00:06.4]} 58... Rxe3+ {[%clk 0:00:07]} 59. fxe3 {[%clk 0:00:06.1]}
59... Ba3 {[%clk 0:00:07.9]} 60. Ke4 {[%clk 0:00:06]} 60... Ke6 {[%clk
0:00:07.9]} 61. Rb5 {[%clk 0:00:06.4]} 61... Bc1 {[%clk 0:00:08]} 62. Rb6+
{[%clk 0:00:06.4]} 62... Ke7 {[%clk 0:00:08.4]} 63. Kf5 {[%clk 0:00:04.9]} 63...
Bxe3 {[%clk 0:00:08.3]} 64. Re6+ {[%clk 0:00:05]} 64... Kf7 {[%clk 0:00:08]} 65.
Rxe3 {[%clk 0:00:05.4]} 1-0

[Event "*** Titled Tuesday Blitz"]
[Site "Chess.com"]
[Date "2020.04.14"]
[Round "7"]
[White "zmeeed67"]
[Black "RiskyDecision"]
[Result "1-0"]
[WhiteElo "2397"]
[BlackElo "2569"]
[TimeControl "180+1"]
[EndTime "11:15:39 PDT"]
[Termination "zmeeed67 won on time"]

1. d4 {[%clk 0:03:00.9]} 1... f5 {[%clk 0:02:59.6]} 2. Nc3 {[%clk 0:02:59.2]}
2... Nf6 {[%clk 0:02:59.4]} 3. Bg5 {[%clk 0:02:58.2]} 3... d5 {[%clk 0:02:59.2]}
4. Bxf6 {[%clk 0:02:56.2]} 4... exf6 {[%clk 0:03:00.1]} 5. e3 {[%clk 0:02:55.9]}
5... Nc6 {[%clk 0:02:59.7]} 6. a3 {[%clk 0:02:51.6]} 6... Be6 {[%clk 0:02:58.6]}
7. Bd3 {[%clk 0:02:51.9]} 7... Qd7 {[%clk 0:02:57.5]} 8. Nf3 {[%clk 0:02:52.3]}
8... Ne7 {[%clk 0:02:41.4]} 9. Ne2 {[%clk 0:02:49.1]} 9... Nc8 {[%clk
0:02:28.2]} 10. b3 {[%clk 0:02:37.2]} 10... Nd6 {[%clk 0:02:26.6]} 11. Nd2
{[%clk 0:02:35.2]} 11... Be7 {[%clk 0:02:11]} 12. O-O {[%clk 0:02:32.1]} 12...
O-O {[%clk 0:02:10.5]} 13. c4 {[%clk 0:02:32.3]} 13... Ne4 {[%clk 0:01:53.3]}
14. Nf4 {[%clk 0:02:26.9]} 14... Bf7 {[%clk 0:01:43.5]} 15. Nxd5 {[%clk
0:02:06.6]} 15... Bxd5 {[%clk 0:01:43.2]} 16. cxd5 {[%clk 0:02:06]} 16... Nxd2
{[%clk 0:01:20.8]} 17. Qxd2 {[%clk 0:02:02.9]} 17... g6 {[%clk 0:01:19.4]} 18.
f4 {[%clk 0:01:26.3]} 18... Kg7 {[%clk 0:01:18.2]} 19. Bc4 {[%clk 0:01:22.2]}
19... Bd6 {[%clk 0:01:04]} 20. b4 {[%clk 0:01:20.2]} 20... a5 {[%clk 0:01:02.2]}
21. bxa5 {[%clk 0:01:12.5]} 21... Qa4 {[%clk 0:00:58.2]} 22. Rfc1 {[%clk
0:00:48]} 22... Qxa5 {[%clk 0:00:56.5]} 23. Qxa5 {[%clk 0:00:45.5]} 23... Rxa5
{[%clk 0:00:57.4]} 24. a4 {[%clk 0:00:44.7]} 24... Rfa8 {[%clk 0:00:49]} 25. Bb5
{[%clk 0:00:34.7]} 25... h5 {[%clk 0:00:42.4]} 26. Kf2 {[%clk 0:00:34.2]} 26...
b6 {[%clk 0:00:40.1]} 27. Kf3 {[%clk 0:00:33.5]} 27... Kf8 {[%clk 0:00:38.4]}
28. g3 {[%clk 0:00:33.4]} 28... Kg7 {[%clk 0:00:38.2]} 29. h3 {[%clk 0:00:33.2]}
29... Rh8 {[%clk 0:00:34.7]} 30. Bc6 {[%clk 0:00:33.1]} 30... Kf8 {[%clk
0:00:27.3]} 31. Rh1 {[%clk 0:00:32.1]} 31... Kg7 {[%clk 0:00:27.1]} 32. g4
{[%clk 0:00:32.1]} 32... hxg4+ {[%clk 0:00:14.8]} 33. hxg4 {[%clk 0:00:33]}
33... Rxh1 {[%clk 0:00:14.6]} 34. Rxh1 {[%clk 0:00:31.8]} 34... fxg4+ {[%clk
0:00:14.4]} 35. Kxg4 {[%clk 0:00:31.1]} 35... f5+ {[%clk 0:00:15]} 36. Kf3
{[%clk 0:00:30.8]} 36... Be7 {[%clk 0:00:15.3]} 37. Re1 {[%clk 0:00:26.9]} 37...
Bd6 {[%clk 0:00:15.5]} 38. e4 {[%clk 0:00:26.6]} 38... fxe4+ {[%clk 0:00:16.4]}
39. Rxe4 {[%clk 0:00:26.4]} 39... Kf6 {[%clk 0:00:15.4]} 40. Kg4 {[%clk
0:00:26.3]} 40... Ra7 {[%clk 0:00:13.9]} 41. Re6+ {[%clk 0:00:26.4]} 41... Kf7
{[%clk 0:00:13.7]} 42. f5 {[%clk 0:00:23.5]} 42... gxf5+ {[%clk 0:00:13.2]} 43.
Kxf5 {[%clk 0:00:24.4]} 43... Ra5 {[%clk 0:00:13.4]} 44. Rh6 {[%clk 0:00:21.4]}
44... Ra7 {[%clk 0:00:13]} 45. Rh7+ {[%clk 0:00:20.9]} 45... Kg8 {[%clk
0:00:13.1]} 46. Rd7 {[%clk 0:00:20]} 46... Ra5 {[%clk 0:00:12]} 47. Ke6 {[%clk
0:00:19.5]} 47... Ra7 {[%clk 0:00:10.7]} 48. Rf7 {[%clk 0:00:13.8]} 48... Ra5
{[%clk 0:00:09.7]} 49. Be8 {[%clk 0:00:10.3]} 49... Ra7 {[%clk 0:00:09]} 50. Bc6
{[%clk 0:00:05]} 50... Ra5 {[%clk 0:00:08.8]} 51. Rd7 {[%clk 0:00:05.5]} 51...
Ra7 {[%clk 0:00:08.2]} 52. Rd8+ {[%clk 0:00:05.8]} 52... Kg7 {[%clk 0:00:08.1]}
53. Kd7 {[%clk 0:00:06.3]} 53... Kf6 {[%clk 0:00:07.1]} 54. Re8 {[%clk
0:00:06.4]} 54... Kf5 {[%clk 0:00:07]} 55. Re6 {[%clk 0:00:06.7]} 55... Ra5
{[%clk 0:00:06.3]} 56. Kc8 {[%clk 0:00:07]} 56... Ra7 {[%clk 0:00:05.3]} 57. Kb8
{[%clk 0:00:07.2]} 57... Ra5 {[%clk 0:00:04.7]} 58. Kb7 {[%clk 0:00:07.5]} 58...
Kf4 {[%clk 0:00:04.5]} 59. Re8 {[%clk 0:00:07]} 59... Kf5 {[%clk 0:00:03.9]} 60.
Rc8 {[%clk 0:00:06.1]} 60... Kf4 {[%clk 0:00:03.6]} 61. Rxc7 {[%clk 0:00:06.2]}
61... Bxc7 {[%clk 0:00:03.8]} 62. Kxc7 {[%clk 0:00:06.4]} 62... Ke4 {[%clk
0:00:03.5]} 63. d6+ {[%clk 0:00:05.1]} 63... Kxd4 {[%clk 0:00:03.6]} 64. d7
{[%clk 0:00:05.3]} 64... Kc5 {[%clk 0:00:02.4]} 65. d8=Q {[%clk 0:00:04.1]}
65... b5 {[%clk 0:00:03.3]} 66. Bxb5 {[%clk 0:00:03.6]} 1-0

[Event "*** Titled Tuesday Blitz"]
[Site "Chess.com"]
[Date "2020.04.14"]
[Round "7"]
[White "Alexander_Zubov"]
[Black "Aygehovit1992"]
[Result "0-1"]
[WhiteElo "2870"]
[BlackElo "2748"]
[TimeControl "180+1"]
[EndTime "11:15:47 PDT"]
[Termination "Aygehovit1992 won on time"]

1. d4 {[%clk 0:03:00.9]} 1... d6 {[%clk 0:02:59.8]} 2. e4 {[%clk 0:02:57.7]}
2... g6 {[%clk 0:03:00.2]} 3. Nf3 {[%clk 0:02:55.2]} 3... Bg7 {[%clk 0:03:00.2]}
4. Bc4 {[%clk 0:02:55.6]} 4... c6 {[%clk 0:02:59.5]} 5. Bb3 {[%clk 0:02:51.7]}
5... Nf6 {[%clk 0:02:58.7]} 6. Nbd2 {[%clk 0:02:49.4]} 6... Bg4 {[%clk
0:02:55.9]} 7. O-O {[%clk 0:02:45.2]} 7... O-O {[%clk 0:02:55.5]} 8. Re1 {[%clk
0:02:42.8]} 8... Nbd7 {[%clk 0:02:49.5]} 9. e5 {[%clk 0:02:32.2]} 9... dxe5
{[%clk 0:02:38.8]} 10. dxe5 {[%clk 0:02:33.1]} 10... Nd5 {[%clk 0:02:39.2]} 11.
h3 {[%clk 0:02:33.3]} 11... Bxf3 {[%clk 0:02:34.4]} 12. Nxf3 {[%clk 0:02:34.2]}
12... Nc5 {[%clk 0:02:31.2]} 13. Bc4 {[%clk 0:02:26.2]} 13... h6 {[%clk
0:02:05]} 14. a3 {[%clk 0:02:18.6]} 14... a5 {[%clk 0:02:01.3]} 15. Qe2 {[%clk
0:02:11.9]} 15... a4 {[%clk 0:01:57.5]} 16. h4 {[%clk 0:02:07.7]} 16... Ne6
{[%clk 0:01:55.4]} 17. Rd1 {[%clk 0:02:03.3]} 17... Qa5 {[%clk 0:01:48.7]} 18.
Bxd5 {[%clk 0:01:43]} 18... cxd5 {[%clk 0:01:47.4]} 19. c3 {[%clk 0:01:39.9]}
19... Rfd8 {[%clk 0:01:44]} 20. Be3 {[%clk 0:01:38.8]} 20... Qa6 {[%clk
0:01:34.3]} 21. Qe1 {[%clk 0:01:37.3]} 21... Qc4 {[%clk 0:01:31]} 22. Bd4 {[%clk
0:01:36.9]} 22... Ra6 {[%clk 0:01:22.8]} 23. Qe3 {[%clk 0:01:34.7]} 23... Qb3
{[%clk 0:01:15.1]} 24. Rd2 {[%clk 0:01:32.3]} 24... Rc6 {[%clk 0:01:12.6]} 25.
Re1 {[%clk 0:01:27.2]} 25... Rc4 {[%clk 0:01:10.8]} 26. g3 {[%clk 0:01:25.5]}
26... Qb5 {[%clk 0:01:06.8]} 27. Kh2 {[%clk 0:01:23.8]} 27... Qc6 {[%clk
0:01:06.5]} 28. Qd3 {[%clk 0:01:19.5]} 28... b5 {[%clk 0:01:03.9]} 29. Rdd1
{[%clk 0:01:13.8]} 29... Qc8 {[%clk 0:01:01.5]} 30. Qe3 {[%clk 0:01:10.7]} 30...
h5 {[%clk 0:01:01.3]} 31. Rg1 {[%clk 0:00:58.7]} 31... Kh7 {[%clk 0:01:00.7]}
32. Qe2 {[%clk 0:00:49.8]} 32... Bh6 {[%clk 0:01:00.3]} 33. Rd3 {[%clk
0:00:49.7]} 33... Nc5 {[%clk 0:00:53.8]} 34. Bxc5 {[%clk 0:00:48.8]} 34... Qxc5
{[%clk 0:00:53.3]} 35. e6 {[%clk 0:00:47]} 35... Re4 {[%clk 0:00:50.8]} 36. Qc2
{[%clk 0:00:42.3]} 36... Rxe6 {[%clk 0:00:50.6]} 37. Rgd1 {[%clk 0:00:41.6]}
37... Re4 {[%clk 0:00:47.5]} 38. Rd4 {[%clk 0:00:35.9]} 38... Rxd4 {[%clk
0:00:44.8]} 39. Nxd4 {[%clk 0:00:36.8]} 39... e6 {[%clk 0:00:43.1]} 40. Qe2
{[%clk 0:00:35.7]} 40... Qc4 {[%clk 0:00:36.7]} 41. Qf3 {[%clk 0:00:32.6]} 41...
Rd7 {[%clk 0:00:34.5]} 42. Re1 {[%clk 0:00:30.2]} 42... Bg7 {[%clk 0:00:33.3]}
43. Qf4 {[%clk 0:00:29.6]} 43... e5 {[%clk 0:00:30.9]} 44. Rxe5 {[%clk
0:00:29.4]} 44... Bxe5 {[%clk 0:00:30.9]} 45. Qxe5 {[%clk 0:00:30.3]} 45... Qc7
{[%clk 0:00:30.9]} 46. Qf6 {[%clk 0:00:29.3]} 46... Qd6 {[%clk 0:00:29]} 47. Qf3
{[%clk 0:00:28.8]} 47... Rb7 {[%clk 0:00:24.5]} 48. Kg1 {[%clk 0:00:25.4]} 48...
Qe5 {[%clk 0:00:24.1]} 49. Qd1 {[%clk 0:00:23.8]} 49... Re7 {[%clk 0:00:22.2]}
50. Kh2 {[%clk 0:00:20.5]} 50... Qf6 {[%clk 0:00:20.2]} 51. Kg2 {[%clk
0:00:19.7]} 51... Qe5 {[%clk 0:00:16.4]} 52. Kh2 {[%clk 0:00:16.1]} 52... Qe4
{[%clk 0:00:16.3]} 53. Qd2 {[%clk 0:00:14.9]} 53... Qe1 {[%clk 0:00:15.4]} 54.
Qf4 {[%clk 0:00:14.3]} 54... Qe4 {[%clk 0:00:15.4]} 55. Qf6 {[%clk 0:00:14.1]}
55... Qe5 {[%clk 0:00:15.7]} 56. Qf3 {[%clk 0:00:13.9]} 56... f5 {[%clk
0:00:13.4]} 57. Qd3 {[%clk 0:00:11.9]} 57... Qe1 {[%clk 0:00:11.6]} 58. Qf3
{[%clk 0:00:11.4]} 58... Re4 {[%clk 0:00:10.4]} 59. Kg2 {[%clk 0:00:09.8]} 59...
Qd2 {[%clk 0:00:08.2]} 60. Nxf5 {[%clk 0:00:05.3]} 60... Qe2 {[%clk 0:00:05.5]}
61. Nd4 {[%clk 0:00:04.2]} 61... Qxf3+ {[%clk 0:00:05.1]} 62. Kxf3 {[%clk
0:00:05.1]} 62... Re1 {[%clk 0:00:05.1]} 63. Nxb5 {[%clk 0:00:03.6]} 63... Rb1
{[%clk 0:00:06]} 64. Ke3 {[%clk 0:00:02.8]} 64... Rxb2 {[%clk 0:00:06.4]} 65.
Nc7 {[%clk 0:00:03]} 65... Rb3 {[%clk 0:00:06.3]} 66. Nxd5 {[%clk 0:00:03.9]}
66... Rxa3 {[%clk 0:00:06.7]} 67. Nb6 {[%clk 0:00:04.5]} 67... Ra1 {[%clk
0:00:06.5]} 0-1

[Event "*** Titled Tuesday Blitz"]
[Site "Chess.com"]
[Date "2020.04.14"]
[Round "7"]
[White "mbachez"]
[Black "MisaPap"]
[Result "1-0"]
[WhiteElo "2525"]
[BlackElo "2656"]
[TimeControl "180+1"]
[EndTime "11:15:47 PDT"]
[Termination "mbachez won on time"]

1. e4 {[%clk 0:03:00.9]} 1... e5 {[%clk 0:02:59.8]} 2. Nf3 {[%clk 0:03:00.3]}
2... Nc6 {[%clk 0:03:00.1]} 3. Bb5 {[%clk 0:03:00.3]} 3... a6 {[%clk 0:02:59.9]}
4. Ba4 {[%clk 0:03:00.5]} 4... Nf6 {[%clk 0:02:59.7]} 5. d3 {[%clk 0:03:00.5]}
5... b5 {[%clk 0:02:55.7]} 6. Bb3 {[%clk 0:03:00.2]} 6... Bb7 {[%clk 0:02:51.1]}
7. O-O {[%clk 0:02:57.2]} 7... Be7 {[%clk 0:02:40.3]} 8. c3 {[%clk 0:02:55.7]}
8... O-O {[%clk 0:02:39.3]} 9. a4 {[%clk 0:02:55.7]} 9... d6 {[%clk 0:02:29]}
10. h3 {[%clk 0:02:53.6]} 10... h6 {[%clk 0:02:26.3]} 11. Re1 {[%clk 0:02:53.1]}
11... Re8 {[%clk 0:02:25.1]} 12. Nbd2 {[%clk 0:02:53]} 12... Bf8 {[%clk
0:02:24.7]} 13. Nf1 {[%clk 0:02:52.8]} 13... g6 {[%clk 0:02:24.4]} 14. Ng3
{[%clk 0:02:49.6]} 14... Bg7 {[%clk 0:02:24]} 15. Nh4 {[%clk 0:02:31.3]} 15...
d5 {[%clk 0:02:04.4]} 16. axb5 {[%clk 0:02:29.3]} 16... axb5 {[%clk 0:02:03.6]}
17. Rxa8 {[%clk 0:02:23.1]} 17... Bxa8 {[%clk 0:02:04.5]} 18. Qf3 {[%clk
0:02:21.1]} 18... Na5 {[%clk 0:01:52]} 19. Ba2 {[%clk 0:02:19.1]} 19... Nxe4
{[%clk 0:01:29.4]} 20. dxe4 {[%clk 0:02:16.9]} 20... Qxh4 {[%clk 0:01:27.8]} 21.
exd5 {[%clk 0:02:13.6]} 21... Nc4 {[%clk 0:01:25.4]} 22. b3 {[%clk 0:02:05.6]}
22... Nd6 {[%clk 0:01:20.7]} 23. c4 {[%clk 0:02:04.3]} 23... bxc4 {[%clk
0:01:20.5]} 24. bxc4 {[%clk 0:02:04.3]} 24... e4 {[%clk 0:01:04.5]} 25. Qa3
{[%clk 0:01:52.1]} 25... Qd8 {[%clk 0:00:28.2]} 26. Be3 {[%clk 0:01:45.4]} 26...
Kh7 {[%clk 0:00:27.1]} 27. c5 {[%clk 0:01:42.3]} 27... Nb5 {[%clk 0:00:26.1]}
28. Qb3 {[%clk 0:00:52.5]} 28... Nc3 {[%clk 0:00:22.4]} 29. d6 {[%clk
0:00:50.7]} 29... Nxa2 {[%clk 0:00:19.8]} 30. Qxa2 {[%clk 0:00:20.2]} 30... cxd6
{[%clk 0:00:15.5]} 31. Qxf7 {[%clk 0:00:18.2]} 31... Re7 {[%clk 0:00:14.9]} 32.
Qa2 {[%clk 0:00:15.4]} 32... dxc5 {[%clk 0:00:11.6]} 33. Bxc5 {[%clk 0:00:14.8]}
33... Re8 {[%clk 0:00:11.1]} 34. Be3 {[%clk 0:00:12.9]} 34... Qd5 {[%clk
0:00:10.7]} 35. Qe2 {[%clk 0:00:12.3]} 35... Qf7 {[%clk 0:00:09.8]} 36. Rc1
{[%clk 0:00:11.6]} 36... Bd5 {[%clk 0:00:09.6]} 37. Qb5 {[%clk 0:00:11.1]} 37...
h5 {[%clk 0:00:06.7]} 38. h4 {[%clk 0:00:10.2]} 38... Ba8 {[%clk 0:00:04.4]} 39.
Qb6 {[%clk 0:00:08.5]} 39... Re6 {[%clk 0:00:03.9]} 40. Qa7 {[%clk 0:00:07.8]}
40... Qxa7 {[%clk 0:00:02.2]} 41. Bxa7 {[%clk 0:00:07.8]} 41... Rc6 {[%clk
0:00:01.5]} 42. Rxc6 {[%clk 0:00:06.9]} 42... Bxc6 {[%clk 0:00:01.1]} 43. Ne2
{[%clk 0:00:07.1]} 43... Bd5 {[%clk 0:00:02]} 44. g3 {[%clk 0:00:07]} 44... Be5
{[%clk 0:00:02.9]} 45. Be3 {[%clk 0:00:06.8]} 45... Bf7 {[%clk 0:00:03.8]} 46.
Bf4 {[%clk 0:00:06.5]} 46... Bg7 {[%clk 0:00:04.7]} 47. Kf1 {[%clk 0:00:06.2]}
47... Bc4 {[%clk 0:00:04.9]} 48. Ke1 {[%clk 0:00:06.3]} 48... Bd3 {[%clk
0:00:04.9]} 49. Kd2 {[%clk 0:00:06.3]} 49... Bb2 {[%clk 0:00:05.1]} 50. Ke3
{[%clk 0:00:06]} 50... Kg7 {[%clk 0:00:05.1]} 51. Bg5 {[%clk 0:00:05.2]} 51...
Kf7 {[%clk 0:00:05]} 52. Nf4 {[%clk 0:00:05.3]} 52... Bc1+ {[%clk 0:00:05.1]}
53. Kd4 {[%clk 0:00:05.5]} 53... Bb2+ {[%clk 0:00:06]} 54. Ke3 {[%clk
0:00:05.2]} 54... Bc1+ {[%clk 0:00:06.3]} 55. Kd4 {[%clk 0:00:05.5]} 55... Bd2
{[%clk 0:00:06.4]} 56. Nxd3 {[%clk 0:00:05]} 56... Bxg5 {[%clk 0:00:05.9]} 57.
Ne5+ {[%clk 0:00:04.8]} 57... Ke6 {[%clk 0:00:05.6]} 58. hxg5 {[%clk 0:00:05.7]}
58... Kf5 {[%clk 0:00:05.8]} 59. Nxg6 {[%clk 0:00:06]} 59... Kxg6 {[%clk
0:00:05.7]} 60. Kxe4 {[%clk 0:00:06.4]} 60... Kxg5 {[%clk 0:00:06.6]} 61. Kf3
{[%clk 0:00:06.1]} 61... Kf5 {[%clk 0:00:06.7]} 62. Kg2 {[%clk 0:00:06.4]} 62...
Kg4 {[%clk 0:00:07.3]} 63. f3+ {[%clk 0:00:06.7]} 63... Kg5 {[%clk 0:00:08.2]}
64. Kh3 {[%clk 0:00:07.1]} 64... Kf5 {[%clk 0:00:09.1]} 65. Kh4 {[%clk
0:00:07.5]} 65... Kg6 {[%clk 0:00:10]} 66. f4 {[%clk 0:00:07.9]} 66... Kh6
{[%clk 0:00:09.2]} 67. f5 {[%clk 0:00:08.2]} 1-0